[Event "Wijk aan Zee"]
[Site "Wijk aan Zee"]
[Date "2017.01.22"]
[Round "8"]
[White "Aronian, Levon"]
[Black "Giri, Anish"]
[Result "1-0"]
[ECO "E11"]
[WhiteElo "2780"]
[BlackElo "2773"]
[Annotator "Sagar Shah"]
[PlyCount "85"]
[EventDate "2017.??.??"]
[EventType "tourn"]
[EventCountry "NED"]
[SourceTitle "playchess.com"]
[Source "ChessBase"]
[TimeControl "40/6000+30:20/3000+30:900+30"]

1. d4 {[%emt 0:00:00]} Nf6 {[%emt 0:00:05]} 2. c4 {[%emt 0:00:00]} e6 {[%emt 0:
00:05]} 3. Nf3 {[%emt 0:00:00]} d5 {[%emt 0:00:06]} 4. g3 {[%emt 0:00:00]} Bb4+
{[%emt 0:00:07]} 5. Bd2 {[%emt 0:00:00]} Be7 {[%emt 0:00:03]} 6. Bg2 {[%emt 0:
00:00]} O-O {[%emt 0:00:06]} 7. O-O {[%emt 0:00:04]} c6 {4 This position has
been reached in nearly 3000 games and Levon Aronian unleashes a move which has
been never played before by White.} 8. Na3 $5 {4 The idea is to put the rook
quickly on c1.} Nbd7 {368} 9. Rc1 {[%emt 0:00:24]} Ne4 {137} (9... b6 10. cxd5
cxd5 11. Qb3 Ba6 12. Nb5 Ne4 13. Bf4 $14) 10. Be3 {[%emt 0:00:06]} Bxa3 {681}
11. bxa3 {5 It's true White has doubled a-pawns. However, is it worth giving
up the dark squared bishop?} Nd6 {[%emt 0:00:11]} 12. c5 {391} Nc4 {567} 13.
Rxc4 $1 {14 An excellent exchange sacrifice. White already has an inferior
pawn structure. Now he even gives up material. What is his compensation for
this? Well, it's the activity of the pieces!} dxc4 {[%emt 0:00:03]} 14. Qc2 {
[%emt 0:00:07]} h6 {403} (14... b5 $6 15. Ng5 Nf6 16. Bxc6 $14) 15. Qxc4 {353}
b6 {83} (15... e5 $5 16. dxe5 Qe7 17. Bd4 Re8 18. Qc3 $44 {Keeps control.}) 16.
Bf4 {[%emt 0:00:47]} Re8 {706} 17. Bd6 {51 The dark squared bishop moves
around the black position like a mouse through the swiss cheese.} Bb7 {462} 18.
Ne5 {217} bxc5 {411} 19. dxc5 {[%emt 0:00:17]} Nxe5 {333} 20. Bxe5 {14 The
difference in the quality of the bishops on the board is clear.} a5 {639} (
20... Qa5 21. Qg4 f6 22. Bxf6 $18) 21. Rb1 {151} Ra7 {[%emt 0:00:21]} (21...
Ba6 22. Qg4 f6 23. Bd6 $16) 22. Qc3 {105} f6 {75} 23. Bd6 {[%emt 0:00:23]} Ba8
{[%emt 0:00:49]} 24. Be4 {92} f5 {92} 25. Bc2 {300} Rb7 {[%emt 0:00:47]} 26.
Rd1 {77 All of White's pieces are in play, while the bishop on a8 looks
horrible. White is just winning. Such positions where opponent has no
counterplay is easy for guys like Levon to play.} Rd7 {[%emt 0:00:42]} 27. e4 {
[%emt 0:00:18]} Qf6 {146} 28. Qc4 {383} Kh8 {101} 29. Re1 {72} Qf7 {95} (29...
f4 30. e5 Qg5 31. Qe4 $16) 30. Qd3 {282} f4 {77} 31. gxf4 {532} (31. e5 g5 32.
g4 $16) 31... e5 {[%emt 0:00:02]} 32. Qh3 {[%emt 0:00:24]} (32. f5 $16) 32...
Rxd6 {134} 33. cxd6 {65} Qg6+ {[%emt 0:00:01]} 34. Qg3 {94} Qxd6 {[%emt 0:00:
09]} 35. Rd1 {[%emt 0:00:17]} Qc5 {[%emt 0:00:31]} 36. Rd7 {64} Rg8 {151} 37.
Bb3 $18 {80} exf4 {[%emt 0:00:29]} 38. Qg6 {125} f3 {[%emt 0:00:42]} 39. h4 {
[%emt 0:00:04]} Qc3 {230} 40. Bxg8 {[%emt 0:00:00]} Qe1+ {[%emt 0:00:05]} 41.
Kh2 {[%emt 0:00:21]} Qxf2+ {[%emt 0:00:03]} 42. Kh3 {[%emt 0:00:04]} Qf1+ {
[%emt 0:00:05]} 43. Kg4 {4 A great game by Levon Aronian.} 1-0

[Event "79th Tata Steel Chess 2017-Masters"]
[Site "Wijk aan Zee"]
[Date "2017.01.27"]
[Round "11"]
[White "Carlsen, Magnus"]
[Black "Adhiban, Baskaran"]
[Result "1/2-1/2"]
[ECO "B01"]
[WhiteElo "2840"]
[BlackElo "2653"]
[Annotator "Sagar Shah"]
[PlyCount "98"]
[EventDate "2017.??.??"]
[EventType "tourn"]
[EventCountry "NED"]
[SourceTitle "playchess.com"]
[Source "ChessBase"]
[TimeControl "40/6000+30:20/3000+30:900+30"]

1. e4 {[%emt 0:00:55]} d5 $5 {5 The Scandinavian against the World Champion
from Scandinavia! Is that something Adhiban had planned before the game?!} 2.
exd5 {[%emt 0:00:05]} Nf6 {[%emt 0:00:04]} 3. Nf3 {107 Magnus goes for the
most solid approach.} (3. c4 {Clinging on to the pawn brings nothing good.} e6
$1 4. dxe6 Bxe6 {with excellent compensation.}) 3... Nxd5 {[%emt 0:00:11]} 4.
d4 {120} Bg4 {[%emt 0:00:06]} 5. h3 {95} Bh5 {98} 6. Be2 {[%emt 0:00:56]} Nc6 {
[%emt 0:00:10]} 7. O-O {229 Magnus has played it simple and should have a
small edge because he will be looking to play c4 and get greater control of
the center.} e6 {[%emt 0:00:09]} 8. c3 {473 Carlsen prefers the solid approach.
} (8. c4 Nb6 9. b3 $5 $14) 8... Be7 {459} 9. Ne5 {91} Nxe5 $5 {868} (9... Bxe2
10. Qxe2 Nxe5 11. dxe5 O-O 12. Rd1 Qc8 13. c4 $14 {is nothing substantial, but
definitely a small edge for White.}) 10. Bxh5 {[%emt 0:00:08]} Ng6 {2 I
already prefer White. He has the bishop pair, a strong center and a superior
position.} 11. Qb3 {598} Rb8 {509} (11... O-O 12. Qxb7 Rb8 13. Qxa7 Bg5 $36 {
Black already has the initiative.}) 12. c4 {549} Nf6 {140} 13. Bxg6 $6 {
46 A little bit too greedy.} (13. Bf3 $1 Qxd4 14. Be3 $16) 13... hxg6 {[%emt 0:
00:04]} 14. Qa4+ {[%emt 0:00:05]} c6 {1076} 15. Qxa7 {10 Magnus wins a side
pawn. If he wriggle out from the queenside he should be fine. But
unfortunately Adhiban drums up counterplay.} Bd6 {[%emt 0:00:20]} 16. Nc3 {149}
(16. Qa4 b5 17. cxb5 cxb5 18. Qb3 Bc7 19. Nd2 Qxd4 20. Nf3 Qd7 $11) 16... Bc7 {
34 The queen is coming to d6 and also Bb6 is threatened.} 17. Rd1 {289} Qd6 {
400} 18. g3 {[%emt 0:00:40]} Qd7 $1 {191 This was the move that Adhiban was
proud of. He gets away from Bf4 ideas and after Rxh3 is threatened. But the
most deadly idea is ... e5! and Qxh3.} (18... Rxh3 {is not the best idea as
after} 19. Bf4 Qe7 20. Bxc7 Qxc7 21. d5 $1 $14 {It's White who has the
initiative.} Rxg3+ 22. fxg3 Qxg3+ 23. Kf1 Qf3+ 24. Qf2 $18) 19. h4 {[%emt 0:00:
40]} O-O $1 {154 Good flexible thinking. Once the pawn has been lured to h4
and the light squares weakened, Black rook has nothing much to do on h8 and it
makes sesnse to quickly castle and resume play in the centre.} 20. Qc5 {217} b5
$1 {303 This gets the d5 square for the knight.} 21. cxb5 {662} cxb5 {[%emt 0:
00:04]} 22. a3 {62} Rfc8 {216} 23. Qg5 {[%emt 0:00:27]} b4 {[%emt 0:00:28]} 24.
axb4 {121} Rxb4 {1 Black pieces are excellently placed and very active.} 25.
Qd2 {757} (25. Ra7 Rxd4 $11) 25... Bb6 {163} 26. Ne2 {20 Clumsy play by Magnus.
In order to keep his pawn advantage he has lost the co-ordination of his
pieces.} Rbc4 $1 {[%emt 0:00:25]} 27. Qd3 {101} e5 $6 {403 A dubious decision
by Adhiban, but one that worked very well in the game.} (27... Qd5 $15 {
Keeping the position was already a very pleasant situation for Black.}) 28. Bg5
{[%emt 0:00:39]} (28. dxe5 $1 Qxd3 29. Rxd3 Ng4 30. Rc3 $1 {This is a nice
move.} Bxf2+ 31. Kg2 Rxc3 32. bxc3 Bc5 33. Bf4 $14 {Although the position
should end in a draw, White is a pawn up for now and can push a bit.}) 28...
Ng4 $1 {211 Now Black once again has pressure.} 29. Rac1 {282} Rxc1 {[%emt 0:
00:39]} 30. Rxc1 {[%emt 0:00:03]} Re8 $1 {159 Keeping the rook, the pressure
is building up on Carlsen's position. All of Black's pieces are wonderfully
placed.} 31. Rd1 {586} exd4 {263} 32. Bf4 {[%emt 0:00:02]} (32. Nxd4 Bxd4 33.
Qxd4 Re1+ $19) 32... Nf6 {[%emt 0:00:47]} 33. Nc1 {84} Nd5 {484} 34. Bd2 {
115 [#] This is the critical position of the game, and the one where Adhiban
missed a forced win.} Qc6 $2 {[%emt 0:00:12]} (34... Qg4 $3 {This was the
killer stroke.} 35. Re1 (35. Rf1 Ne3 $19) 35... Re3 $3 {Reminds us of the
great Reti vs Alekhine.} 36. fxe3 (36. Qf1 Rf3 $19 {is very strong.}) 36...
Qxg3+ 37. Kf1 {Adhiban said that he saw until here in his calculations, but
then left it. Well, what can we say. He only had to look two moves deeper.}
Qf3+ 38. Kg1 dxe3 $19 {And it's all over. Black is a rook down, but has a
completely crushing attack.}) 35. Ne2 {69} Qf6 {326} 36. Rc1 {60} Qf5 {69 This
is akin to a draw offer.} 37. Qxf5 {305} gxf5 {[%emt 0:00:02]} 38. Kf1 {
[%emt 0:00:08]} d3 {[%emt 0:00:20]} 39. Nc3 {[%emt 0:00:17]} Nxc3 {208} 40.
Rxc3 {[%emt 0:00:00]} Bd4 {60} 41. Rb3 {60} g6 {220} 42. f3 {72} Be5 {403} 43.
g4 {63} fxg4 {87} 44. fxg4 {[%emt 0:00:02]} Bf6 {[%emt 0:00:48]} 45. h5 {
[%emt 0:00:28]} gxh5 {89} 46. gxh5 {[%emt 0:00:01]} Re5 {157} 47. h6 {[%emt 0:
00:46]} Kh7 {[%emt 0:00:25]} 48. Rxd3 {68} Rf5+ {[%emt 0:00:04]} 49. Ke2 {
[%emt 0:00:05]} Bxb2 {4 A great result for Adhiban, but he would have really
wished that he would have found Qg4! But in any case, drawing the World
Champion with the black pieces is a great achievemet.} 1/2-1/2

[Event "79th Tata Steel Chess 2017-Masters"]
[Site "Wijk aan Zee"]
[Date "2017.01.27"]
[Round "11"]
[White "Giri, Anish"]
[Black "Harikrishna, Pentala"]
[Result "1/2-1/2"]
[ECO "A34"]
[WhiteElo "2773"]
[BlackElo "2766"]
[Annotator "Sagar Shah"]
[PlyCount "71"]
[EventDate "2017.??.??"]
[EventType "tourn"]
[EventCountry "NED"]
[SourceTitle "playchess.com"]
[Source "ChessBase"]
[TimeControl "40/6000+30:20/3000+30:900+30"]

1. Nf3 {[%emt 0:00:00]} Nf6 {[%emt 0:00:12]} 2. c4 {[%emt 0:00:00]} c5 {
[%emt 0:00:08]} 3. Nc3 {[%emt 0:00:00]} d5 {[%emt 0:00:07]} 4. cxd5 {[%emt 0:
00:00]} Nxd5 {[%emt 0:00:09]} 5. e4 {[%emt 0:00:00]} Nb4 {[%emt 0:00:10]} 6.
Bc4 {[%emt 0:00:00]} Nd3+ {95} 7. Ke2 {[%emt 0:00:00]} Nxc1+ {[%emt 0:00:07]}
8. Rxc1 {11 This is one of the wonders of modern chess. White has almost all
his pieces developed. Black hasn't got out any one of them yet and still the
position is interesting and playable! I must say that in order to play this
with Black you must be very well prepared, as one mistake and it's all over.}
a6 {[%emt 0:00:10]} (8... Nc6 9. Bb5 {has been scoring well for White. Hence,
Hari first stops the Bb5 idea.}) 9. d4 {[%emt 0:00:10]} b5 {[%emt 0:00:07]} 10.
Bd5 {[%emt 0:00:03]} Ra7 {6 I remember seeing the crazy game between Jakovenko
and Sutovsky and I said to myself, this must be winning for White at some
point. And it was. In the end Sutovsky had won, but still, this line is very
dangerous for Black.} 11. dxc5 {[%emt 0:00:46]} e6 {[%emt 0:00:07]} 12. c6 {
71 Harikrishna thought here for nearly 28 minutes before making his next move.}
b4 $1 {1703} (12... exd5 13. Nxd5 $16 {looks really bad.}) 13. Qd4 {808} Rc7 {
271} (13... Qe7 {was what Anish had prepared.} 14. Na4 exd5 15. Rhe1 dxe4 16.
Kf1 $16 {With a very strong attack.}) 14. Na4 {275} exd5 {67} 15. exd5 {
133 White has two pawns for a piece and excellent development. Next up the
rook will come to e1 and king will tuck itself in on f1. This is the ideal
scenario for White. Black will try to fight this idea, but in any case this
looks better for White.} Be7 {185} 16. Qxg7 {284} Bf6 {110} 17. Qh6 {305} Re7+
{1471} 18. Kf1 {[%emt 0:00:19]} Qxd5 $2 {366} (18... Be5 {was perhaps the best.
}) 19. Qxf6 {107 White has won back his piece and is two pawns up. Even if the
one on c6 falls, White will be a pawn up and the rest should be easy for Anish.
} Rg8 {63} 20. h3 $2 {1509} (20. g3 $1 Bg4 21. Kg2 {It's surely risky to get
into this pin, but it all works out well.} Re6 22. c7 $18) 20... Re6 {810} 21.
Qf4 {[%emt 0:00:54]} Nxc6 {[%emt 0:00:40]} 22. Nc5 {268} Re7 {109} 23. g3 {466}
Rg6 {462} 24. Kg2 {416} Qd6 {554 Harikrishna found that the endgame was the
best way to try and defend this inferior position. But it's just going into a
pawn down lost position.} (24... Qxa2 25. Rhe1 Qd5 26. Ne4 $18) 25. Qc4 {201} (
25. Qxd6 Rxd6 $16 {was possible, but Giri is right when he decides to keep the
queens on the board. The black king is more exposed and it makes sense to keep
the most powerful piece.}) 25... Qf6 {72} 26. Rce1 {256} Qxb2 {68} 27. Na4 {231
} Qa3 {211} 28. Nb6 {[%emt 0:00:36]} Bb7 {5 Black is consolidating to some
extent.} 29. Nd5 $2 {7 A big blunder by Giri after which Hari had the chances
to wrest over the initiative.} Rge6 $6 {[%emt 0:00:08]} (29... Rd6 $1 30. Qc5 (
30. Nxe7 Ne5 $1 31. Rxe5 Qxf3+ $19) 30... Qxf3+ $3 {what a sacrifice!} 31. Kxf3
Rxd5 32. Rxe7+ Nxe7 33. Qa7 Rf5+ 34. Ke2 Bxh1 $19 {And Black should win this.})
30. Qc5 {527} Rxe1 {[%emt 0:00:56]} 31. Rxe1 {151} Rxe1 {[%emt 0:00:04]} 32.
Nxe1 {[%emt 0:00:44]} Qxa2 {124} 33. Nf3 {168} Kd7 {[%emt 0:00:01]} 34. Kh2 {62
} Qe2 {[%emt 0:00:23]} 35. Nf6+ {315} Kc7 {[%emt 0:00:15]} 36. Nd5+ {5 A very
depressing game for Anish. Once again he botched up a winning position. And
Hari should overall be happy, although he could have won at one particular
instance!} 1/2-1/2

[Event "79th Tata Steel Chess 2017-Masters"]
[Site "Wijk aan Zee"]
[Date "2017.01.29"]
[Round "13"]
[White "Rapport, Richard"]
[Black "Adhiban, Baskaran"]
[Result "0-1"]
[ECO "A45"]
[WhiteElo "2702"]
[BlackElo "2653"]
[PlyCount "82"]
[EventDate "2017.??.??"]
[TimeControl "60"]

1. d4 {(0:00)} Nf6 {(0:04)} 2. Bg5 {(1:22) The Trompowsky Returns!} c5 {(0:07)}
3. Nc3 {(1:59)} (3. Bxf6 gxf6 4. d5 $11 {is more famous.}) 3... cxd4 {(0:08)}
4. Qxd4 {( (13)} Nc6 {(0:03)} 5. Qh4 {(0:26)} e6 {(0:15)} 6. O-O-O {(1:11)} Be7
{(1:59)} 7. e4 {(1:49)} a6 {( (10)} 8. Nf3 {(5:46)} Qc7 {(8:12)} 9. Bd3 {
(10:11)} d6 {(1:03) A Taimanov where White looks strangley placed.} 10. Rhe1 {
(0:45)} Bd7 {(11:38)} 11. e5 {(12:43)} dxe5 {(6:50)} 12. Ne4 {(1:43)} Nd5 {
(20:45)} 13. Bxe7 {(3:12)} Ncxe7 {(2:38)} 14. Ng3 {(7:35)} f6 {(11:54)} 15. Nh5
{(1:01)} O-O-O {(2:02)} 16. Nxg7 {(1:30)} Ng6 {(0:45)} 17. Qc4 {(17:14)} Ngf4 {
(0:54)} 18. Qxc7+ {(0:22)} Nxc7 {(4:51)} 19. g4 {(2:37)} Bc6 {(3:32)} 20. Be4 {
(1:21)} Ng2 {(4:36)} 21. Re2 {(0:03)} Nf4 {(0:11)} 22. Ree1 {(0:39)} Rxd1+ {
( (55)} 23. Kxd1 {(0:03)} Ng2 {(0:17)} 24. Re2 {(0:43)} Nf4 {(0:11)} 25. Re1 {
(3:27)} Ng2 {(4:54)} 26. Re2 {(0:08)} Rd8+ {(0:26)} 27. Nd2 {(3:16)} Nf4 {
(0:08)} 28. Bxc6 {(0:02)} Nxe2 {(0:07)} 29. Bxb7+ {(0:06)} Kxb7 {(0:03)} 30.
Kxe2 {(0:04)} Rg8 {(2:40)} 31. Nh5 {(0:05)} Rg6 {(8:58)} 32. Kf3 {(4:07)} f5 {
(0:45)} 33. gxf5 {(0:34)} exf5 {(0:05)} 34. Ng3 {(0:02)} e4+ {(5:37)} 35. Kf4 {
(0:44)} Nd5+ {(0:19)} 36. Kxf5 {(2:05)} e3 {(0:03)} 37. fxe3 {(0:13)} Nxe3+ {
( (02)} 38. Ke5 {(4:20)} Nxc2 {(0:28)} 39. Nde4 {(0:14]} Rh6 {(2:32)} 40. Nf1 {
(0:00)} Nb4 {(0:09)} 41. Nf6 {(2:00)} Nxa2 {(3:39)} 0-1